bitfinex-derivatives/quotes_BTCF0:USTF0_20250330
["timestamp","ask_amount","ask_price","bid_price","bid_amount"]
[1743342142351,0.55813731,82930.0,82929.0,2.19858392]
[1743342143455,0.73107214,82930.0,82929.0,2.19858392]
[1743342143663,0.61045484,82930.0,82929.0,2.19858392]
[1743342144246,0.61043798,82930.0,82929.0,2.19858392]
[1743342144854,0.73105528,82930.0,82929.0,2.19858392]
[1743342145457,0.73105528,82930.0,82929.0,1.98322748]
[1743342146064,0.73105528,82930.0,82929.0,2.19392748]
[1743342146266,0.71961731,82930.0,82929.0,2.19392748]
[1743342147862,0.71961731,82930.0,82929.0,1.83312748]
[1743342148067,0.71961731,82930.0,82929.0,2.19392748]
[1743342148667,0.71961731,82930.0,82929.0,2.41112748]
[1743342148965,0.73105975,82930.0,82929.0,2.41112748]
[1743342149170,0.73105975,82930.0,82929.0,2.05032748]
[1743342149770,0.73105975,82930.0,82929.0,1.83312748]
[1743342150168,0.71961731,82930.0,82929.0,1.83312748]
[1743342150670,0.73113695,82930.0,82929.0,1.83312748]
[1743342151170,0.71961731,82930.0,82929.0,1.83312748]
[1743342151861,0.71961731,82930.0,82929.0,2.03262748]
[1743342153266,0.43752001,82930.0,82929.0,2.03262748]
[1743342153465,0.2819735,82933.0,82932.0,0.1206144]
[1743342153667,0.00132,82936.0,82935.0,0.1206101]
[1743342153869,0.00018051,82938.0,82937.0,0.1206072]
[1743342154070,0.00154051,82938.0,82937.0,0.1212872]
[1743342154267,0.00154051,82938.0,82937.0,1.6212872]
[1743342154456,0.00018051,82938.0,82937.0,1.6212872]
[1743342159780,0.00018051,82938.0,82937.0,2.44092848]
[1743342162970,0.4210741,82978.0,82963.0,0.1205694]
[1743342163166,0.1612,82965.0,82963.0,0.4820094]
[1743342163372,0.00172,82964.0,82963.0,0.4820094]
[1743342163866,0.2023,82964.0,82963.0,1.9820094]
[1743342164067,0.2023,82964.0,82963.0,2.3922094]
[1743342164875,0.0004,82964.0,82963.0,2.3922094]
[1743342166574,0.0004,82964.0,82963.0,2.40406243]
[1743342174579,0.0004,82996.0,82979.0,0.1205461]
[1743342174883,0.2121,82982.0,82979.0,0.4820661]
[1743342175087,0.00172,82980.0,82979.0,0.4820661]
[1743342175481,0.21732,82980.0,82979.0,1.9820661]
[1743342175686,0.216,82980.0,82979.0,1.9820661]
[1743342177187,0.216,82980.0,82979.0,2.3909661]
[1743342181482,0.216,82980.0,82979.0,1.9820661]
[1743342182185,0.216,82980.0,82979.0,2.1839661]
[1743342183389,0.216,82980.0,82979.0,2.4014661]
[1743342183993,0.216,82980.0,82979.0,2.1839661]
[1743342184193,0.216,82980.0,82979.0,1.9820661]
[1743342184391,0.4306,82980.0,82979.0,1.9820661]
[1743342184589,0.43204,82980.0,82979.0,1.9820661]
[1743342184794,0.4306,82980.0,82979.0,1.9820661]
[1743342185691,0.216,82980.0,82979.0,1.9820661]
[1743342189795,0.3365447,82980.0,82979.0,1.9820661]
[1743342189998,0.21732,82980.0,82979.0,1.9820661]
[1743342190190,0.216,82980.0,82979.0,1.9820661]
[1743342191789,0.216,82980.0,82979.0,2.1965661]
[1743342193692,0.216,82980.0,82979.0,2.4091661]
[1743342194502,0.216,82980.0,82979.0,2.87936524]
[1743342195707,0.216,82980.0,82979.0,2.66676524]
[1743342195901,0.216,82980.0,82979.0,2.45226524]
[1743342197204,0.4242,82980.0,82979.0,2.45226524]
[1743342197399,0.5447447,82980.0,82979.0,2.45226524]
[1743342197705,0.55750015,82980.0,82979.0,2.33171914]
[1743342198300,0.55750015,82980.0,82979.0,2.45226524]
[1743342199204,0.55748463,82980.0,82979.0,2.45226524]
[1743342201408,0.55748463,82980.0,82979.0,1.9820661]
[1743342201904,0.71812463,82980.0,82979.0,1.9820661]
[1743342202699,0.59757993,82980.0,82979.0,1.9820661]
[1743342203405,0.71812463,82980.0,82979.0,1.9820661]
[1743342203804,0.71812463,82980.0,82979.0,0.36152]
[1743342207407,0.71804463,82980.0,82979.0,0.37383666]
[1743342208204,0.43693993,82980.0,82979.0,0.37383666]
[1743342208404,0.59605993,82980.0,82979.0,1.13588276]
[1743342208606,0.58476,82980.0,82979.0,1.13588276]
[1743342209001,0.59593886,82980.0,82979.0,1.13588276]
[1743342209308,0.59593934,82980.0,82979.0,0.93348276]
[1743342209505,0.71648404,82980.0,82979.0,0.49438276]
[1743342209809,0.71780404,82980.0,82979.0,0.49438276]
[1743342210112,0.71780404,82980.0,82979.0,0.36152]
[1743342210408,0.71780404,82980.0,82979.0,0.4820661]
[1743342212009,0.71780404,82980.0,82979.0,0.1212661]
[1743342215013,0.71772404,82980.0,82979.0,0.1212661]
[1743342215214,0.71777286,82980.0,82979.0,0.1212661]
[1743342216911,0.71777286,82980.0,82979.0,0.3365661]
[1743342218007,0.71777286,82980.0,82979.0,0.5583661]
[1743342220917,0.71777286,82980.0,82979.0,0.21602]
[1743342221209,0.71777286,82980.0,82979.0,0.00072]
[1743342221417,0.71777286,82980.0,82979.0,0.1212661]
[1743342223106,0.71777286,82980.0,82979.0,0.5488661]
[1743342223307,0.71768027,82980.0,82979.0,0.5488661]
[1743342224808,0.29372027,82980.0,82979.0,0.5488661]
[1743342227212,0.29371076,82980.0,82979.0,0.5488661]
[1743342228511,0.00172,82980.0,82979.0,0.5488661]
[1743342228710,0.0004,82980.0,82979.0,0.5488661]
[1743342229614,0.0004,82980.0,82979.0,2.0488661]
[1743342230118,0.0004,82980.0,82979.0,2.88864812]
[1743342231820,0.0004,82980.0,82979.0,3.24944812]
[1743342233524,0.0004,82980.0,82979.0,2.4096661]
[1743342237226,0.2018,82986.0,82985.0,0.1205374]
[1743342237421,0.20320001,82986.0,82985.0,0.1219374]
[1743342238126,0.2018,82986.0,82985.0,0.5491374]
[1743342238618,0.2068,82986.0,82985.0,0.5491374]
[1743342240422,0.2068,82986.0,82985.0,0.56451304]
[1743342240927,0.20816,82986.0,82985.0,0.56451304]
[1743342241128,0.2068,82986.0,82985.0,0.56451304]
[1743342241329,0.20812,82986.0,82985.0,0.56451304]
[1743342241530,0.20812,82986.0,82985.0,0.5491374]
[1743342242328,0.20812,82986.0,82985.0,0.3345374]
[1743342242927,0.20812,82986.0,82985.0,0.0014]
[1743342242928,0.3286559,82986.0,82985.0,0.0014]
[1743342243125,0.3397349,82986.0,82985.0,0.0014]
[1743342243324,0.3397349,82986.0,82985.0,0.1219374]
[1743342243730,0.3397349,82986.0,82985.0,0.0014]
[1743342243936,0.7005349,82986.0,82985.0,0.0014]
[1743342244229,0.3397349,82986.0,82985.0,0.0014]
[1743342244635,0.3397349,82986.0,82985.0,0.1219374]
[1743342244933,0.3397349,82986.0,82985.0,0.0014]
[1743342245839,0.1205432,82981.0,82980.0,0.28866585]
[1743342246039,0.13338221,82981.0,82980.0,0.28866585]
[1743342246434,0.13352846,82981.0,82980.0,0.28866585]
[1743342246737,0.55472846,82981.0,82980.0,0.28866585]
[1743342247937,0.55972846,82981.0,82980.0,0.28866585]
[1743342248538,0.55974375,82981.0,82980.0,0.28866585]
[1743342248932,0.55974369,82981.0,82980.0,0.28866585]
[1743342249631,0.1205447,82980.0,82979.0,8e-05]
[1743342249832,0.0602767,82974.0,82967.0,8e-05]
[1743342250032,0.0602847,82963.0,82940.0,0.0603012]
[1743342250334,0.1205795,82956.0,82955.0,0.00048219]
[1743342250539,0.29356658,82956.0,82955.0,0.00056219]
[1743342250842,0.29356658,82956.0,82955.0,0.00048219]
[1743342251238,0.70236658,82956.0,82955.0,0.00048219]
[1743342252532,0.70236474,82956.0,82955.0,0.00048219]
[1743342253538,0.70336474,82956.0,82955.0,0.00048219]
[1743342253839,0.53213951,82956.0,82955.0,0.48186319]
[1743342254041,0.69205951,82956.0,82955.0,0.48186319]
[1743342254241,0.57148001,82956.0,82955.0,1.98186319]
[1743342254541,0.21166001,82956.0,82955.0,1.98186319]
[1743342254734,0.1437123,82966.0,82963.0,0.1205694]
[1743342254929,0.16190039,82964.0,82963.0,0.4813694]
[1743342255535,0.00198039,82964.0,82963.0,2.2021694]
[1743342255744,0.00018038,82964.0,82963.0,2.4033694]
[1743342256045,0.00218038,82964.0,82963.0,2.4033694]
[1743342256347,0.00394039,82964.0,82963.0,2.4033694]
[1743342256740,0.00494039,82964.0,82963.0,2.4033694]
[1743342257642,0.00318038,82964.0,82963.0,2.4033694]
[1743342258345,0.00118038,82964.0,82963.0,2.4033694]
[1743342259049,0.20958038,82964.0,82963.0,2.4033694]
[1743342259245,0.21238039,82964.0,82963.0,2.4033694]
[1743342259446,0.0602777,82973.0,82963.0,2.4033694]
[1743342259447,0.0602717,82981.0,82977.0,0.1808179]
[1743342259639,0.2803861,82980.0,82979.0,0.1205461]
[1743342259944,0.00120001,82980.0,82979.0,0.1211861]
[1743342260148,0.16104001,82980.0,82979.0,0.3230861]
[1743342260643,0.16104001,82980.0,82979.0,0.33506599]
[1743342261048,0.16504001,82980.0,82979.0,0.33506599]
[1743342261349,0.38314001,82980.0,82979.0,0.33506599]
[1743342261549,0.38814001,82980.0,82979.0,0.33606599]
[1743342262248,0.50868471,82980.0,82979.0,0.00164]
[1743342262449,0.50868471,82980.0,82979.0,0.001]
[1743342262450,0.71018471,82980.0,82979.0,0.001]
[1743342262642,0.72144751,82980.0,82979.0,0.001]
[1743342263252,0.72144751,82980.0,82979.0,0.00164]
[1743342263445,0.72144751,82980.0,82979.0,0.001]
[1743342263753,0.94054751,82980.0,82979.0,0.001]
[1743342264747,0.120549,82977.0,82976.0,8e-05]
[1743342264947,0.13301181,82977.0,82976.0,8e-05]
[1743342265454,0.1205592,82970.0,82969.0,8e-05]
[1743342265651,0.12179921,82970.0,82969.0,0.0008]
[1743342265849,0.1205679,82964.0,82963.0,0.2411371]
[1743342266154,0.2803279,82964.0,82963.0,0.1212084]
[1743342266355,0.28156791,82964.0,82963.0,0.1212084]
[1743342266749,0.71196791,82964.0,82963.0,0.1212084]
[1743342267148,0.71196791,82964.0,82963.0,0.3297084]
[1743342267959,0.71396791,82964.0,82963.0,0.3297084]
[1743342268550,0.71496791,82964.0,82963.0,0.3297084]
[1743342269453,0.55520791,82964.0,82963.0,0.3297084]
[1743342269661,0.2832879,82964.0,82963.0,0.3297084]
[1743342269851,0.003,82964.0,82963.0,0.3297084]
[1743342270052,0.16272,82964.0,82963.0,0.3297084]
[1743342270248,0.16272,82964.0,82963.0,1.8297084]
[1743342271153,0.2832879,82964.0,82963.0,1.8297084]
[1743342271354,0.16272,82964.0,82963.0,1.8297084]
[1743342272057,0.2832879,82964.0,82963.0,1.8297084]
[1743342272256,0.16272,82964.0,82963.0,1.8297084]
[1743342272864,0.2832879,82964.0,82963.0,1.8297084]
[1743342273156,0.16264,82964.0,82963.0,1.8297084]
[1743342273552,0.2832079,82964.0,82963.0,1.8297084]
[1743342274056,0.16264,82964.0,82963.0,1.8297084]
[1743342274848,0.9958613,82983.0,82971.0,0.1205577]
[1743342275053,0.15982077,82972.0,82971.0,0.4819977]
[1743342275559,0.15982077,82972.0,82971.0,1.9819977]
[1743342275754,0.15982077,82972.0,82971.0,2.4152977]
[1743342276054,0.16282077,82972.0,82971.0,2.4152977]
[1743342276260,0.00318077,82972.0,82971.0,2.4152977]
[1743342276760,0.00618077,82972.0,82971.0,2.4152977]
[1743342277659,0.00318077,82972.0,82971.0,2.4152977]
[1743342277859,0.00518077,82972.0,82971.0,2.4152977]
[1743342278160,0.21538077,82972.0,82971.0,2.4152977]
[1743342278552,0.00518077,82972.0,82971.0,2.4152977]
[1743342278863,0.00218077,82972.0,82971.0,2.4152977]
[1743342281161,0.42708077,82972.0,82971.0,2.4152977]
[1743342281353,0.42708077,82972.0,82971.0,2.0544977]
[1743342281960,0.42836077,82972.0,82971.0,2.0544977]
[1743342282860,0.42828078,82972.0,82971.0,2.0544977]
[1743342289558,0.21948078,82972.0,82971.0,2.0544977]
[1743342289760,0.21828077,82972.0,82971.0,2.0544977]
[1743342289964,0.00346077,82972.0,82971.0,2.0544977]
[1743342290162,0.00218077,82972.0,82971.0,2.0544977]
[1743342292568,0.40648077,82972.0,82971.0,2.0544977]
[1743342293963,0.40648077,82972.0,82971.0,2.4152977]
[1743342294965,0.40648077,82972.0,82971.0,2.0544977]
[1743342295167,0.40768078,82972.0,82971.0,2.4152977]
[1743342295471,0.40648077,82972.0,82971.0,2.4152977]
[1743342296865,0.20398077,82972.0,82971.0,2.4152977]
[1743342297270,0.00218077,82972.0,82971.0,2.4152977]
[1743342297568,0.58188,82978.0,82977.0,0.120549]
[1743342297773,0.2106,82978.0,82977.0,0.121189]
[1743342298159,0.2106,82978.0,82977.0,0.532889]
[1743342298775,0.2146,82978.0,82977.0,0.532889]
[1743342298962,0.2156,82978.0,82977.0,0.532889]
[1743342301859,0.005,82978.0,82977.0,0.532889]
[1743342302469,0.35416,82990.0,82989.0,0.1205316]
[1743342302665,0.36663291,82990.0,82989.0,0.4819716]
[1743342302868,0.20747291,82990.0,82989.0,1.9826116]
[1743342303063,0.195,82990.0,82989.0,1.99407072]
[1743342303379,0.195,82990.0,82989.0,2.41267072]
[1743342303773,0.3155301,82990.0,82989.0,0.37353912]
[1743342304072,0.32800349,82990.0,82989.0,0.00064]
[1743342304266,0.1808183,82981.0,82980.0,0.1205442]
[1743342304463,0.23076704,82981.0,82980.0,0.1211842]
[1743342304680,0.37429484,82981.0,82980.0,0.1211842]
[1743342305275,0.37429484,82981.0,82980.0,0.13329419]
[1743342305867,0.49483804,82981.0,82980.0,0.13329419]
[1743342306862,0.49483804,82981.0,82980.0,0.1211842]
[1743342307070,0.64623805,82981.0,82980.0,0.00064]
[1743342307374,0.1205577,82971.0,82969.0,0.00018077]
[1743342307677,0.55059254,82971.0,82969.0,0.00018077]
[1743342307872,0.1205592,82970.0,82969.0,0.00018077]
[1743342308071,0.13349405,82970.0,82969.0,0.00018077]
[1743342308271,0.13349405,82970.0,82969.0,0.12074137]
[1743342309480,0.13449405,82970.0,82969.0,0.12074137]
[1743342309880,0.13446361,82970.0,82969.0,0.12074137]
[1743342311076,0.13446361,82970.0,82969.0,0.00018077]
[1743342311474,0.1205621,82968.0,82967.0,8e-05]
[1743342311679,0.1205737,82960.0,82943.0,0.7976]
[1743342311980,0.1205737,82960.0,82957.0,8e-05]
[1743342312174,0.13186607,82960.0,82957.0,8e-05]
[1743342312375,0.1205737,82960.0,82959.0,0.1205752]
[1743342312577,0.1334453,82960.0,82959.0,0.1205752]
[1743342312786,0.1205766,82958.0,82957.0,0.1206571]
[1743342312977,0.12229661,82958.0,82957.0,1.50008]
[1743342313182,0.12217661,82958.0,82957.0,1.50008]
[1743342313579,0.12217661,82958.0,82957.0,8e-05]
[1743342313974,0.13354088,82958.0,82957.0,8e-05]
[1743342314278,0.1205781,82957.0,82956.0,1.5]
[1743342314486,0.1195795,82956.0,82955.0,0.21699963]
[1743342314683,0.29158378,82956.0,82955.0,0.21699963]
[1743342315279,0.28958378,82956.0,82955.0,0.00048219]
[1743342315688,0.28958378,82956.0,82955.0,0.00148219]
[1743342315883,0.2895167,82956.0,82955.0,0.00148219]
[1743342316186,0.2895167,82956.0,82955.0,0.00448219]
[1743342317373,0.27821951,82956.0,82955.0,0.00448219]
[1743342317573,0.28954153,82956.0,82955.0,0.00448219]
[1743342317773,0.49824153,82956.0,82955.0,0.00448219]
[1743342317988,0.49824153,82956.0,82955.0,1.50448219]
[1743342318886,0.91694153,82956.0,82955.0,1.50448219]
[1743342319385,0.90561951,82956.0,82955.0,1.50448219]
[1743342319587,0.94938597,82956.0,82939.0,0.00048228]
[1743342319778,0.94938597,82956.0,82939.0,0.13342277]
[1743342319779,0.1206028,82940.0,82939.0,0.13342277]
[1743342319983,0.2795628,82940.0,82939.0,1.63350277]
[1743342320386,0.28120281,82940.0,82939.0,1.63350277]
[1743342320585,0.72610281,82940.0,82939.0,1.63350277]
[1743342321286,0.72610281,82940.0,82939.0,1.63450277]
[1743342322089,0.72610281,82940.0,82939.0,1.51389847]
[1743342322284,0.72610281,82940.0,82939.0,1.51589847]
[1743342323079,0.74467519,82940.0,82939.0,1.51589847]
[1743342323284,0.74463519,82940.0,82939.0,1.50356228]
[1743342323487,0.74463519,82940.0,82939.0,0.01567241]
[1743342323980,0.74463519,82940.0,82939.0,0.00348228]
[1743342324789,1.16333519,82940.0,82939.0,0.00348228]
[1743342326190,1.51476391,82940.0,82939.0,0.00348228]
[1743342326490,0.1206086,82936.0,82935.0,8e-05]
[1743342326801,0.0603063,82934.0,82930.0,8e-05]
[1743342327089,0.0603063,82934.0,82910.0,0.57731744]
[1743342327090,0.1206261,82924.0,82910.0,0.57731744]
[1743342327396,0.120645,82911.0,82910.0,0.21659744]
[1743342327591,0.28116501,82911.0,82910.0,0.21651744]
[1743342327782,0.28116501,82911.0,82907.0,0.00048247]
[1743342327783,0.1186493,82908.0,82907.0,0.00048247]
[1743342327983,0.12024931,82908.0,82907.0,0.00048247]
[1743342328294,0.1176697,82894.0,82893.0,0.4349]
[1743342328491,0.2735097,82894.0,82893.0,0.43498]
[1743342328680,0.27510971,82894.0,82893.0,0.22809402]
[1743342329092,0.70907405,82894.0,82893.0,0.22809402]
[1743342329285,0.70907405,82894.0,82893.0,0.2163]
[1743342329286,0.70207405,82894.0,82893.0,0.2163]
[1743342329488,0.1206712,82893.0,82892.0,0.43303489]
[1743342329789,0.55060742,82893.0,82892.0,0.43303489]
[1743342329994,0.97500742,82893.0,82892.0,0.43303489]
[1743342330193,0.97500742,82893.0,82891.0,0.00048256]
[1743342330194,0.1206726,82892.0,82891.0,0.00048256]
[1743342330394,0.13186883,82892.0,82891.0,0.00048256]
[1743342330584,0.55486883,82892.0,82891.0,0.00048256]
[1743342330791,0.97356883,82892.0,82891.0,0.00048256]
[1743342331190,0.97356883,82892.0,82891.0,0.21158256]
[1743342331590,0.97343705,82892.0,82891.0,0.21158256]
[1743342332386,0.98241781,82892.0,82891.0,0.00048256]
[1743342332790,0.99041781,82892.0,82891.0,0.00048256]
[1743342333301,0.98099337,82892.0,82891.0,0.21158256]
[1743342334500,1.13983337,82892.0,82891.0,0.21158256]
[1743342334801,1.13983337,82892.0,82891.0,0.00048256]
[1743342335194,1.14914885,82892.0,82891.0,0.20758256]
[1743342335504,1.14914885,82892.0,82891.0,0.00048256]
[1743342335697,1.14914885,82892.0,82891.0,1.50048256]
[1743342335894,0.94604885,82892.0,82891.0,1.70758256]
[1743342339102,0.78720885,82892.0,82891.0,1.70758256]
[1743342339398,0.94600885,82892.0,82891.0,1.70758256]
[1743342340000,0.94600885,82892.0,82891.0,0.20758256]
[1743342340706,0.78720885,82892.0,82891.0,0.20758256]
[1743342340896,0.94600885,82892.0,82891.0,0.20758256]
[1743342341096,0.94600885,82892.0,82891.0,0.41278256]
[1743342341607,0.94605392,82892.0,82891.0,0.41278256]
[1743342342307,0.93669337,82892.0,82891.0,0.41278256]
[1743342343200,0.94605373,82892.0,82891.0,0.41278256]
[1743342343801,0.55837297,82892.0,82891.0,0.89425666]
[1743342344000,0.59646037,82892.0,82891.0,0.89425666]
[1743342344199,0.70777261,82892.0,82891.0,0.89425666]
[1743342345906,0.70773261,82892.0,82891.0,0.89425666]
[1743342346311,0.70773261,82892.0,82891.0,0.53345666]
[1743342346496,0.00964001,82892.0,82891.0,0.89425666]
[1743342346702,0.4187,82904.0,82901.0,0.1206595]
[1743342346904,0.28115899,82902.0,82901.0,0.4814595]
[1743342347201,0.16050089,82902.0,82901.0,0.4814595]
[1743342347615,0.16050089,82902.0,82901.0,0.9154595]
[1743342348112,0.16350089,82902.0,82901.0,0.9154595]
[1743342348322,0.28415899,82902.0,82901.0,0.9154595]
[1743342348511,0.16450089,82902.0,82901.0,0.9154595]
[1743342348908,0.16446089,82902.0,82901.0,0.9154595]
[1743342349113,0.16146089,82902.0,82901.0,0.9154595]
[1743342349310,0.16346089,82902.0,82901.0,0.9154595]
[1743342350009,0.003,82902.0,82901.0,0.9154595]
[1743342350215,0.15868,82907.0,82906.0,0.1206523]
[1743342350506,0.48255771,82916.0,82915.0,0.1206392]
[1743342350814,0.48255771,82916.0,82915.0,0.1212792]
[1743342350815,0.65376516,82916.0,82915.0,0.1212792]
[1743342351015,0.65264515,82916.0,82915.0,0.1212792]
[1743342351214,0.28043771,82916.0,82915.0,0.1212792]
[1743342351416,0.28043771,82916.0,82915.0,0.5541792]
[1743342351811,0.15980001,82916.0,82915.0,0.5541792]
[1743342352207,0.16880001,82916.0,82915.0,0.5541792]
[1743342352407,0.28943771,82916.0,82915.0,0.5541792]
[1743342352606,0.16880001,82916.0,82915.0,0.5541792]
[1743342352809,0.16768,82916.0,82915.0,0.5541792]
[1743342353007,0.1676,82916.0,82915.0,0.5541792]
[1743342353406,0.2882377,82916.0,82915.0,0.5541792]
[1743342353616,0.28935771,82916.0,82915.0,0.5541792]
[1743342354417,0.30082608,82916.0,82915.0,0.5541792]
[1743342354618,0.30082608,82916.0,82915.0,0.56597181]
[1743342354819,0.28935771,82916.0,82915.0,0.56597181]
[1743342356916,0.30079523,82916.0,82915.0,0.22334]
[1743342357116,0.50279523,82916.0,82915.0,0.22334]
[1743342357311,0.50079523,82916.0,82915.0,0.22334]
[1743342357821,0.49879523,82916.0,82915.0,0.22334]
[1743342358018,0.86259523,82916.0,82915.0,0.00064]
[1743342358213,0.1206493,82908.0,82907.0,0.00018088]
[1743342358413,0.13336682,82908.0,82907.0,0.00018088]
[1743342358616,0.13336682,82908.0,82907.0,0.00082088]
[1743342359714,0.49416682,82908.0,82907.0,0.00082088]
[1743342360615,0.49616682,82908.0,82907.0,0.00082088]
[1743342360818,0.49916682,82908.0,82907.0,0.00082088]
[1743342361322,0.50875212,82908.0,82907.0,0.00018088]
[1743342361715,0.51175212,82908.0,82907.0,0.00018088]
[1743342361926,0.93045212,82908.0,82907.0,0.00018088]
[1743342362814,0.1206566,82903.0,82902.0,8e-05]
[1743342363015,0.1206566,82903.0,82897.0,8e-05]
[1743342363016,0.1206639,82898.0,82897.0,8e-05]
[1743342363226,0.56188095,82898.0,82897.0,8e-05]
[1743342363729,0.1206726,82892.0,82891.0,0.00048256]
[1743342364024,0.1206726,82892.0,82891.0,0.53729666]
[1743342364025,0.30162965,82892.0,82891.0,0.53729666]
[1743342364226,0.30162965,82892.0,82891.0,0.75559666]
[1743342364634,0.52082965,82892.0,82891.0,0.75559666]
[1743342364817,0.52082965,82892.0,82891.0,0.63492256]
[1743342364818,0.52093752,82892.0,82891.0,0.63492256]
[1743342365327,0.52493752,82892.0,82891.0,0.63492256]
[1743342365523,0.52893752,82892.0,82891.0,0.63492256]
[1743342366129,0.52893752,82892.0,82891.0,0.21312256]
[1743342366321,0.52893752,82892.0,82891.0,0.00112256]
[1743342366820,0.74293752,82892.0,82891.0,0.00112256]
[1743342368222,0.73321137,82892.0,82891.0,0.00112256]
[1743342368821,0.24005877,82892.0,82891.0,0.12179666]
[1743342369022,0.16768,82892.0,82891.0,0.12179666]
[1743342369419,0.16768,82892.0,82891.0,0.76639666]
[1743342369619,0.16768,82892.0,82891.0,2.26639666]
[1743342369820,0.2883526,82892.0,82891.0,2.26639666]
[1743342370131,0.2843526,82892.0,82891.0,2.26639666]
[1743342370529,0.2813526,82892.0,82891.0,2.26639666]
[1743342371027,0.2803526,82892.0,82891.0,2.14572256]
[1743342371217,0.51735425,82892.0,82891.0,0.00112256]
[1743342371618,0.51435425,82892.0,82891.0,0.00112256]
[1743342371825,0.35995425,82892.0,82891.0,0.12179666]
[1743342372032,0.01868165,82892.0,82891.0,0.12179666]
[1743342372331,0.16564,82892.0,82891.0,0.12179666]
[1743342372630,0.16564,82892.0,82891.0,0.20572256]
[1743342372828,0.16564,82892.0,82891.0,1.92092256]
[1743342372829,0.297762,82892.0,82891.0,1.92092256]
[1743342373024,0.298762,82892.0,82891.0,1.92092256]
[1743342373629,0.502762,82892.0,82891.0,2.04159666]
[1743342373829,0.704462,82892.0,82891.0,2.04159666]
[1743342374631,0.701462,82892.0,82891.0,2.04159666]
[1743342374833,0.705462,82892.0,82891.0,2.04159666]
[1743342375330,0.705462,82892.0,82891.0,0.20572256]
[1743342376237,0.705462,82892.0,82891.0,0.32639666]
[1743342376631,0.3830894,82892.0,82891.0,0.32639666]
[1743342376832,0.3830894,82892.0,82891.0,2.24809666]
[1743342377034,0.38307141,82892.0,82891.0,0.74809666]
[1743342377536,0.38307141,82892.0,82891.0,2.24809666]
[1743342377734,0.50374401,82892.0,82891.0,0.20572256]
[1743342378840,0.50378734,82892.0,82891.0,0.00112256]
[1743342380830,0.50378734,82892.0,82891.0,0.00048256]
[1743342381031,0.50378734,82892.0,82891.0,0.00112256]
[1743342382534,0.50378734,82892.0,82891.0,0.21652256]
[1743342384034,0.71868734,82892.0,82891.0,0.21652256]
[1743342385535,0.71868734,82892.0,82891.0,0.54869666]
[1743342386835,0.7186848,82892.0,82891.0,0.54869666]
[1743342387234,0.7186848,82892.0,82891.0,0.42802256]
[1743342388441,0.1206785,82888.0,82887.0,8e-05]
[1743342388636,0.0603428,82883.0,82879.0,0.2157]
[1743342388849,0.1206901,82880.0,82879.0,0.21634]
[1743342389146,0.2918023,82880.0,82879.0,0.21634]
[1743342389446,0.2918023,82880.0,82879.0,0.00064]
[1743342389639,0.2918023,82880.0,82879.0,0.0126725]
[1743342390047,0.2928023,82880.0,82879.0,0.0126725]
[1743342390948,0.30206577,82880.0,82879.0,0.0126725]
[1743342391148,0.30206577,82880.0,82879.0,0.00064]
[1743342392641,0.74296577,82880.0,82879.0,0.01258846]
[1743342393162,0.74288577,82880.0,82879.0,0.13328006]
[1743342393545,0.74288577,82880.0,82879.0,0.01258846]
[1743342393941,0.58480577,82880.0,82879.0,0.01258846]
[1743342394142,0.74288577,82880.0,82879.0,0.01258846]
[1743342394347,0.74288577,82880.0,82879.0,0.43248846]
[1743342394749,0.7428737,82880.0,82879.0,0.55318006]
[1743342395353,0.7428737,82880.0,82879.0,0.42054]
[1743342395851,0.7428737,82880.0,82879.0,0.43287073]
[1743342396054,0.7428737,82880.0,82879.0,0.42054]
[1743342397257,0.7428737,82880.0,82879.0,0.5412316]
[1743342397847,0.7428737,82880.0,82879.0,0.55354177]
[1743342398654,0.74281336,82880.0,82879.0,0.55354177]
[1743342400057,0.58473336,82880.0,82879.0,0.55354177]
[1743342400260,0.74273336,82880.0,82879.0,0.55354177]
[1743342400744,0.01387979,82880.0,82879.0,0.55354177]
[1743342401061,0.17187979,82880.0,82879.0,0.55354177]
[1743342401256,0.16048,82880.0,82879.0,0.55354177]
[1743342402946,0.00248,82880.0,82879.0,0.55354177]
[1743342403260,0.37352845,82889.0,82887.0,0.1206799]
[1743342403455,0.37456846,82889.0,82888.0,1.1170785]
[1743342403654,0.37456846,82889.0,82888.0,1.1177185]
[1743342403851,0.0603227,82911.0,82901.0,0.1206595]
[1743342404050,0.26410924,82902.0,82901.0,0.1206595]
[1743342404356,0.42202924,82902.0,82901.0,0.1212995]
[1743342404754,0.26410924,82902.0,82901.0,0.1212995]
[1743342405058,0.42202924,82902.0,82901.0,0.1212995]
[1743342405654,0.17000073,82902.0,82901.0,0.1212995]
[1743342405857,0.060324,82909.0,82908.0,0.1206493]
[1743342406155,0.15864,82909.0,82908.0,0.1214493]
[1743342406355,0.1586,82909.0,82908.0,0.1214493]
[1743342406560,0.15788,82909.0,82908.0,1.6214493]
[1743342406760,0.15788,82909.0,82908.0,2.0608493]
[1743342407551,0.15988,82909.0,82908.0,2.0608493]
[1743342407753,0.87636,82924.0,82915.0,0.1206392]
[1743342407955,0.15828,82916.0,82915.0,0.4821592]
[1743342408154,0.159,82916.0,82915.0,0.4821592]
[1743342408354,0.15828,82916.0,82915.0,0.4821592]
[1743342408565,0.15828,82916.0,82915.0,0.9300592]
[1743342409262,0.16128,82916.0,82915.0,0.9300592]
[1743342409862,0.15928,82916.0,82915.0,0.9300592]
[1743342410162,0.16128,82916.0,82915.0,0.9300592]
[1743342410345,0.16028,82916.0,82915.0,0.9300592]
[1743342410553,0.16228,82916.0,82915.0,0.9300592]
[1743342410752,0.163,82916.0,82915.0,0.9300592]
[1743342411160,0.163,82916.0,82915.0,0.94234154]
[1743342411564,0.161,82916.0,82915.0,0.94234154]
[1743342411858,0.163,82916.0,82915.0,0.94234154]
[1743342412455,0.16228,82916.0,82915.0,0.94234154]
[1743342413363,0.16328,82916.0,82915.0,0.94234154]
[1743342413751,0.16028,82916.0,82915.0,0.94234154]
[1743342413954,0.16228,82916.0,82915.0,0.94234154]
[1743342414155,0.0044,82916.0,82915.0,0.94234154]
[1743342416050,0.0044,82916.0,82915.0,2.44234154]
[1743342416559,0.15768,82922.0,82921.0,0.1206304]
[1743342416763,0.15844,82922.0,82921.0,0.1206304]
[1743342416963,0.15844,82922.0,82921.0,0.1213904]
[1743342417171,0.15768,82928.0,82925.0,0.0603122]
[1743342417359,0.1584,82928.0,82927.0,0.3608]
[1743342417552,0.15768,82928.0,82927.0,0.4821417]
[1743342417759,0.15768,82928.0,82927.0,0.9147417]
[1743342417967,0.15768,82928.0,82927.0,2.4147417]
[1743342419160,0.0004,82932.0,82931.0,0.1206159]
[1743342419472,0.15804,82932.0,82931.0,0.1213359]
[1743342419770,0.1588,82932.0,82931.0,0.1213359]
[1743342420867,0.1618,82932.0,82931.0,0.1213359]
[1743342421268,0.16104,82932.0,82931.0,0.1213359]
[1743342421471,0.16176,82932.0,82931.0,0.1213359]